fUST/lending_fUST_20240610
["ID","MTS","AMOUNT","RATE_DAILY","PERIOD"]
[328936681,1718011840109,-190.8564535,0.00019998,2]
[328936683,1718011840120,-213.17679622,0.00019999,7]
[328936685,1718011840131,-20483.60386553,0.0002,2]
[328936688,1718011840141,-529.009361,0.0002,4]
[328936689,1718011840151,-7679.6,0.0002,2]
[328936691,1718011840161,-224.23955391,0.0002,2]
[328936693,1718011840172,-1000.0,0.0002,2]
[328936696,1718011840184,-1105.71303428,0.0002,2]
[328936697,1718011840195,-254.0,0.0002,2]
[328936699,1718011840205,-435.0,0.0002,2]
[328936702,1718011840216,-278.7792365,0.0002,2]
[328936704,1718011840227,-155.11716881,0.0002,2]
[328936706,1718011840237,-1455.8319284,0.0002,3]
[328936721,1718011840389,-281.26811784,0.0002,2]
[328936723,1718011840400,-4260.74694657,0.0002,2]
[328936725,1718011840412,-3855.62211873,0.0002,2]
[328936727,1718011840424,-214.927471,0.0002,2]
[328936730,1718011840435,-151.0,0.0002,2]
[328936732,1718011840446,-151.0,0.0002,2]
[328936734,1718011840457,-151.0,0.0002,2]
[328936735,1718011840468,-293.468978,0.0002,2]
[328936738,1718011840478,-151.0,0.0002,2]
[328936739,1718011840489,-202.535226,0.0002,2]
[328936742,1718011840500,-151.0,0.0002,2]
[328936744,1718011840510,-151.0,0.0002,2]
[328936746,1718011840521,-151.0,0.0002,2]
[328936747,1718011840534,-151.0,0.0002,2]
[328936750,1718011840544,-151.0,0.0002,2]
[328936752,1718011840554,-151.0,0.0002,2]
[328936754,1718011840565,-151.0,0.0002,2]
[328936756,1718011840576,-151.0,0.0002,2]
[328936758,1718011840586,-151.0,0.0002,2]
[328936760,1718011840597,-358.7,0.0002011,3]
[328936762,1718011840608,-393.60143125,0.000203,2]
[328936764,1718011840619,-358.7,0.00020404,5]
[328936766,1718011840632,-151.0,0.00020404,5]
[328936768,1718011840642,-153.0,0.00020438,2]
[328936770,1718011840653,-153.0,0.00020438,2]
[328936772,1718011840664,-153.0,0.00020438,2]
[328936774,1718011840674,-153.0,0.00020438,2]
[328936776,1718011840684,-153.0,0.00020438,2]
[328936778,1718011840695,-153.0,0.00020438,2]
[328936780,1718011840705,-153.0,0.00020438,2]
[328936782,1718011840715,-153.0,0.00020438,2]
[328936784,1718011840726,-153.0,0.00020438,2]
[328936786,1718011840736,-614.723,0.00020478,2]
[328936788,1718011840747,-68468.68391358,0.00020484,2]
[328936792,1718011840782,-34649.52543646,0.00020484,2]
[328936794,1718011840795,-466.29326252,0.00020484,2]
[328937131,1718011844739,-153.0,0.000192,2]
[328937133,1718011844754,-4700.47170706,0.00020484,2]
[328937189,1718011845417,-302.14849804,0.00020484,2]
[328937218,1718011847943,-483.68080341,0.00020484,2]
[328937227,1718012463447,552.89399516,9.999e-05,2]
[328937302,1718013033010,-692.23,0.00017971,2]
[328937303,1718013033022,-8916.1473226,0.00017971,2]
[328937304,1718013033032,-300.0,0.00018257,2]
[328937305,1718013033041,-552.89399516,0.00018258,2]
[328937306,1718013033051,-240.82,0.00019168,3]
[328937308,1718013033061,-1444.57547444,0.00019174,2]
[328937310,1718013033071,-155.04203482,0.00019175,2]
[328937312,1718013033081,-3357.37299193,0.00019175,2]
[328937314,1718013033091,-1632.58637617,0.00019176,7]
[328937316,1718013033101,-610.53370792,0.00019176,2]
[328937318,1718013033111,-11097.15193042,0.00019176,2]
[328937319,1718013033122,-16644.72555229,0.00019176,2]
[328937394,1718013042980,-6061.36488938,0.00019176,2]
[328937398,1718013042990,-12513.35734044,0.00019177,2]
[328937402,1718013043000,-12615.36852716,0.00019178,7]
[328937406,1718013043010,-500.0,0.00019178,2]
[328937410,1718013043020,-500.0,0.00019178,2]
[328937413,1718013043030,-500.0,0.00019178,2]
[328937416,1718013043039,-500.0,0.00019178,2]
[328937418,1718013043048,-500.0,0.00019178,2]
[328937421,1718013043058,-500.0,0.00019178,2]
[328937424,1718013043068,-509.86600279,0.00019178,2]
[328937427,1718013043077,-511.03483259,0.00019178,2]
[328937429,1718013043086,-500.0,0.00019178,2]
[328937431,1718013043096,-500.0,0.00019178,2]
[328937433,1718013043105,-504.50458181,0.00019178,2]
[328937435,1718013043114,-205.41533945,0.00019178,2]
[328937437,1718013043124,-500.0,0.00019178,2]
[328937439,1718013043134,-500.0,0.00019178,2]
[328937441,1718013043145,-500.0,0.00019178,2]
[328937443,1718013043155,-500.0,0.00019178,2]
[328937445,1718013043164,-500.0,0.00019178,2]
[328937448,1718013043177,-501.50362085,0.00019178,2]
[328937451,1718013043187,-514.35312752,0.00019178,2]
[328937453,1718013043197,-500.0,0.00019178,2]
[328937455,1718013043208,-500.0,0.00019178,2]
[328937456,1718013043219,-500.0,0.00019178,2]
[328937458,1718013043229,-502.52064538,0.00019178,2]
[328937460,1718013043239,-503.23950912,0.00019178,2]
[328937462,1718013043249,-504.62511368,0.00019178,2]
[328937464,1718013043261,-500.0,0.00019178,2]
[328937466,1718013043271,-500.0,0.00019178,2]
[328937468,1718013043281,-500.0,0.00019178,2]
[328937470,1718013043291,-500.0,0.00019178,2]
[328937472,1718013043300,-445.80126249,0.00019178,2]
[328937474,1718013043312,-500.0,0.00019178,2]
[328937476,1718013043322,-500.0,0.00019178,2]
[328937478,1718013043331,-500.0,0.00019178,2]
[328937480,1718013043341,-500.0,0.00019178,2]
[328937482,1718013043351,-328.39712378,0.00019178,2]
[328937484,1718013043361,-502.27260737,0.00019178,2]
[328937486,1718013043371,-458.55223386,0.00019178,2]
[328937488,1718013043381,-500.0,0.00019178,2]
[328937490,1718013043392,-500.0,0.00019178,2]
[328937492,1718013043402,-500.0,0.00019178,2]
[328937494,1718013043412,-500.0,0.00019178,2]
[328937496,1718013043422,-279.45513395,0.00019178,2]
[328937498,1718013043432,-500.0,0.00019178,2]
[328937500,1718013043443,-500.0,0.00019178,2]
[328937502,1718013043452,-500.0,0.00019178,2]
[328937504,1718013043462,-500.0,0.00019178,2]
[328937506,1718013043472,-500.0,0.00019178,2]
[328937508,1718013043482,-500.0,0.00019178,2]
[328937511,1718013043492,-500.0,0.00019178,2]
[328937514,1718013043502,-500.0,0.00019178,2]
[328937517,1718013043513,-500.0,0.00019178,2]
[328937519,1718013043523,-500.6618498,0.00019178,2]
[328937522,1718013043532,-500.0,0.00019178,2]
[328937524,1718013043542,-500.0,0.00019178,2]
[328937526,1718013043552,-500.0,0.00019178,2]
[328937528,1718013043562,-500.0,0.00019178,2]
[328937531,1718013043572,-500.0,0.00019178,2]
[328937534,1718013043581,-500.0,0.00019178,2]
[328937536,1718013043590,-500.0,0.00019178,2]
[328937539,1718013043600,-500.0,0.00019178,2]
[328937541,1718013043609,-500.0,0.00019178,2]
[328937543,1718013043618,-297.82197009,0.00019178,2]
[328937545,1718013043628,-500.0,0.00019178,2]
[328937547,1718013043637,-500.0,0.00019178,2]
[328937549,1718013043648,-500.0,0.00019178,2]
[328937551,1718013043658,-500.0,0.00019178,2]
[328937553,1718013043667,-500.0,0.00019178,2]
[328937555,1718013043677,-500.0,0.00019178,2]
[328937557,1718013043686,-500.0,0.00019178,2]
[328937558,1718013043696,-550.3310889,0.00019178,2]
[328937559,1718013043707,-500.0,0.00019178,2]
[328937560,1718013043717,-500.0,0.00019178,2]
[328937561,1718013043726,-500.0,0.00019178,2]
[328937562,1718013043736,-500.0,0.00019178,2]
[328937563,1718013043745,-500.0,0.00019178,2]
[328937564,1718013043755,-500.0,0.00019178,2]
[328937565,1718013043766,-630.92,0.00019178,2]
[328937566,1718013043775,-1788.04,0.00019178,2]
[328937567,1718013043785,-500.0,0.00019178,2]
[328937568,1718013043794,-500.0,0.00019178,2]
[328937569,1718013043804,-500.0,0.00019178,2]
[328937570,1718013043813,-500.0,0.00019178,2]
[328937571,1718013043823,-612.94,0.00019178,2]
[328937573,1718013043833,-500.0,0.00019178,2]
[328937575,1718013043843,-500.0,0.00019178,2]
[328937576,1718013043853,-500.0,0.00019178,2]
[328937578,1718013043863,-500.0,0.00019178,2]
[328937580,1718013043873,-500.0,0.00019178,2]
[328937581,1718013043883,-1177.42,0.00019178,2]
[328937582,1718013043895,-605.36013203,0.00019178,2]
[328937583,1718013043904,-500.0,0.00019178,2]
[328937584,1718013043914,-641.99570024,0.00019178,2]
[328937585,1718013043923,-1371.53,0.00019178,2]
[328937586,1718013043933,-500.0,0.00019178,2]
[328937587,1718013043943,-500.0,0.00019178,2]
[328937588,1718013043953,-500.0,0.00019178,2]
[328937589,1718013043962,-500.0,0.00019178,2]
[328937591,1718013043972,-500.0,0.00019178,2]
[328937593,1718013043982,-509.36014672,0.00019178,2]
[328937641,1718013044975,-105.12985328,0.00019178,2]
[328937642,1718013044985,-500.0,0.00019178,2]
[328937643,1718013044996,-500.0,0.00019178,2]
[328937644,1718013045007,-1236.64,0.00019178,2]
[328937645,1718013045017,-500.0,0.00019178,2]
[328937646,1718013045027,-500.0,0.00019178,2]
[328937647,1718013045037,-84.20288258,0.00019178,2]
[328937669,1718013054264,-172.55467219,0.00019177,2]
[328937671,1718013054274,-427.31784442,0.00019178,2]
[328937672,1718013054285,-500.0,0.00019178,2]
[328937673,1718013054295,-500.0,0.00019178,2]
[328937674,1718013054305,-506.52206214,0.00019178,2]
[328937675,1718013054316,-500.0,0.00019178,2]
[328937676,1718013054326,-500.0,0.00019178,2]
[328937677,1718013054336,-528.38276969,0.00019178,2]
[328937678,1718013054346,-500.0,0.00019178,2]
[328937679,1718013054356,-500.0,0.00019178,2]
[328937680,1718013054366,-500.0,0.00019178,2]
[328937681,1718013054376,-500.0,0.00019178,2]
[328937682,1718013054386,-500.0,0.00019178,2]
[328937683,1718013054396,-500.0,0.00019178,2]
[328937684,1718013054407,-500.0,0.00019178,2]
[328937685,1718013054417,-1537.51,0.00019178,2]
[328937686,1718013054427,-582.76,0.00019178,2]
[328937687,1718013054436,-1175.09,0.00019178,2]
[328937688,1718013054446,-502.9985145,0.00019178,2]
[328937689,1718013054456,-500.0,0.00019178,2]
[328937690,1718013054466,-540.85990708,0.00019178,2]
[328937691,1718013054477,-835.12,0.00019178,2]
[328937692,1718013054486,-500.0,0.00019178,2]
[328937693,1718013054496,-500.0,0.00019178,2]
[328937695,1718013054506,-502.36322369,0.00019178,2]
[328937697,1718013054515,-500.0,0.00019178,2]
[328937699,1718013054525,-500.0,0.00019178,2]
[328937700,1718013054536,-500.0,0.00019178,2]
[328937701,1718013054545,-500.0,0.00019178,2]
[328937702,1718013054555,-500.0,0.00019178,2]
[328937703,1718013054565,-375.15954391,0.00019178,2]
[328937704,1718013054575,-658.87,0.00019178,4]
[328937705,1718013054585,-500.0,0.00019178,2]
[328937706,1718013054595,-500.0,0.00019178,2]
[328937707,1718013054605,-500.0,0.00019178,2]
[328937708,1718013054615,-500.0,0.00019178,2]
[328937709,1718013054625,-519.95,0.00019178,2]
[328937710,1718013054635,-500.0,0.00019178,2]
[328937711,1718013054645,-539.31,0.00019178,2]
[328937712,1718013054655,-767.2,0.00019178,2]
[328937713,1718013054665,-500.0,0.00019178,2]
[328937714,1718013054674,-502.67077635,0.00019178,2]
[328937715,1718013054684,-500.0,0.00019178,2]
[328937716,1718013054693,-500.0,0.00019178,2]
[328937717,1718013054703,-500.0,0.00019178,2]
[328937718,1718013054712,-596.71904748,0.00019178,2]
[328937719,1718013054730,-1016.79095252,0.00019178,2]
[328937720,1718013054740,-500.0,0.00019178,2]
[328937721,1718013054750,-573.25917193,0.00019178,2]
[328937722,1718013054760,-357.27971404,0.00019178,2]
[328937730,1718013100060,292.06180465,0.00014382,2]
[328937735,1718013390562,2084.48709891,9.999e-05,2]
[328937744,1718014032325,686.41586833,9.999e-05,2]
[328937787,1718014052255,5000.0,0.00015,2]
[328937788,1718014074590,5058.32,0.00015,2]
[328937789,1718014092855,205.37,0.00010959,2]
[328937791,1718014103359,171.14,0.00010959,2]
[328937792,1718014113860,855.72,0.00010959,2]
[328937858,1718014233709,-244.381311,0.00016007,2]
[328937859,1718014233719,-310.825115,0.00016007,2]
[328937860,1718014233730,-318.6149584,0.00016008,2]
[328937861,1718014233740,-110.19686858,0.00016915,2]
[328937862,1718014233753,-194.18583455,0.00016915,2]
[328937863,1718014233763,-7919.47684419,0.00017005,2]
[328937864,1718014233773,-193.34879195,0.00017006,2]
[328937865,1718014233783,-155.05136365,0.00017006,2]
[328937866,1718014233793,-242.61442661,0.00017006,2]
[328937867,1718014233802,-300.0,0.00017006,2]
[328937868,1718014233813,-56828.07378579,0.00017008,2]
[328937869,1718014233823,-1281.7000677,0.0001701,2]
[328937870,1718014233833,-686.02976671,0.0001701,2]
[328937871,1718014233844,-8896.32026762,0.00017012,2]
[328938732,1718014247083,-5719.4546987,0.00016702,2]
[328938746,1718014395778,250.0,0.00014605,2]
[328938747,1718014523146,8513.5668716,0.00014421,2]
[328938748,1718014528247,7919.47684419,0.0001442,2]
[328938750,1718014577637,659.9278516,0.00014535,2]
[328938751,1718014710619,5119.12919364,9.999e-05,2]
[328938752,1718014758970,244.381312,0.0001442,2]
[328938759,1718014791177,6806.8652065,0.00014418,2]
[328938760,1718014812176,24900.0,0.00014418,2]
[328938761,1718014949746,3000.0,0.00014388,2]
[328938762,1718015004685,172.30067139,0.00015085,2]
[328938763,1718015096294,723.4300018,0.00014235,2]
[328938767,1718015207061,30533.80955383,0.00015,3]
[328938824,1718015255267,172.30067137,0.00015085,2]
[328938825,1718015350408,1420.548137,0.0001421,2]
[328938826,1718015355197,20174.5635543,0.0001421,2]
[328938831,1718015374091,16230.86164536,0.00015085,2]
[328938835,1718015405992,15173.13970507,0.00015085,2]
[328938837,1718015422667,155.00310006,0.00015085,2]
[328938838,1718015432332,6774.02732983,9.999e-05,2]
[328938857,1718015434033,-1457.56102675,0.00015167,2]
[328938858,1718015434043,-241.93645238,0.0001518,2]
[328938859,1718015434053,-523.27943417,0.0001518,2]
[328938860,1718015434065,-157.69330776,0.0001518,2]
[328938861,1718015434075,-155.05359262,0.0001518,2]
[328938862,1718015434084,-282.41230643,0.0001518,2]
[328938863,1718015434096,-300.0,0.00015181,2]
[328938864,1718015434106,-27612.0003762,0.00015182,2]
[328938865,1718015434118,-653.11575,0.00015182,2]
[328938917,1718015439930,-18371.97575725,0.00015182,2]
[328938918,1718015439941,-10919.68902583,0.00015183,2]
[328938920,1718015439952,-308.31536066,0.00015185,2]
[328938922,1718015439964,-32442.86590544,0.00015185,2]
[328938923,1718015439976,-3532.58191079,0.00015285,2]
[328938924,1718015439987,-3071.27011912,0.00015417,2]
[328938925,1718015439997,-208.33723987,0.00015417,2]
[328938926,1718015440008,-308.31536064,0.00016158,2]
[328938927,1718015440021,-420.0,0.00016612,2]
[328938928,1718015440035,-275.63357094,0.000167,2]
[328938929,1718015440046,-4238.41830585,0.00016979,2]
[328938930,1718015440057,-10414.03706925,0.00017012,2]
[328938931,1718015440070,-308.31536064,0.00017132,2]
[328938932,1718015440081,-160.6,0.00017171,2]
[328938933,1718015440092,-160.6,0.00017448,3]
[328938934,1718015440105,-160.6,0.00017725,3]
[328938935,1718015440116,-160.6,0.00018002,3]
[328938936,1718015440127,-308.31536064,0.00018105,2]
[328938937,1718015440137,-587.0,0.00018177,2]
[328938938,1718015440148,-160.6,0.00018279,3]
[328938939,1718015440159,-646.70447307,0.00018541,2]
[328938940,1718015440171,-160.6,0.00018556,3]
[328938942,1718015440181,-938.6661561,0.000187,2]
[328938943,1718015440194,-160.6,0.00018833,3]
[328938944,1718015440205,-275.23243216,0.000189,2]
[328938945,1718015440216,-308.31536064,0.00019078,2]
[328938946,1718015440226,-248.0,0.00019079,3]
[328938947,1718015440238,-160.6,0.0001911,3]
[328938948,1718015440248,-1302.68548416,0.00019157,2]
[328938949,1718015440259,-499.0,0.00019165,2]
[328938950,1718015440270,-277.81831048,0.00019176,2]
[328938951,1718015440280,-712.54708636,0.00019176,2]
[328938952,1718015440302,-2764.54651746,0.00019176,2]
[328938953,1718015440314,-309.9070279,0.00019176,2]
[328938954,1718015440326,-155.03195233,0.00019176,2]
[328938955,1718015440339,-155.61930701,0.00019176,2]
[328938957,1718015440350,-2410.47181677,0.00019176,2]
[328938958,1718015440362,-9588.50838645,0.00019176,2]
[328938959,1718015440373,-3791.97961643,0.00019177,2]
[328938960,1718015440384,-1418.40420396,0.00019177,2]
[328938961,1718015440396,-6307.68426359,0.00019178,7]
[328938962,1718015440407,-2348.7189542,0.00019178,7]
[328938963,1718015440419,-278.87307676,0.00019178,2]
[328938964,1718015440430,-379.00132751,0.00019178,2]
[328938965,1718015440441,-500.0,0.00019178,2]
[328938966,1718015440453,-668.71,0.00019178,2]
[328938967,1718015440464,-500.0,0.00019178,2]
[328938968,1718015440475,-500.0,0.00019178,2]
[328938969,1718015440496,-500.0,0.00019178,2]
[328938970,1718015440516,-500.0,0.00019178,2]
[328938971,1718015440536,-500.0,0.00019178,2]
[328938972,1718015440553,-500.0,0.00019178,2]
[328938973,1718015440571,-500.0,0.00019178,2]
[328938974,1718015440591,-500.0,0.00019178,2]
[328938975,1718015440608,-500.0,0.00019178,2]
[328938976,1718015440628,-500.0,0.00019178,2]
[328938977,1718015440647,-501.18847149,0.00019178,2]
[328938978,1718015440664,-1160.38,0.00019178,2]
[328938979,1718015440683,-500.0,0.00019178,2]
[328938980,1718015440702,-574.4,0.00019178,2]
[328938981,1718015440718,-500.0,0.00019178,2]
[328938982,1718015440731,-154.95351395,0.00019178,2]
[328938983,1718015440746,-500.0,0.00019178,2]
[328938984,1718015440763,-500.0,0.00019178,2]
[328938985,1718015440780,-500.0,0.00019178,2]
[328938986,1718015440796,-500.0,0.00019178,2]
[328938987,1718015440815,-500.0,0.00019178,2]
[328938988,1718015440830,-778.7,0.00019178,2]
[328938989,1718015440844,-500.0,0.00019178,2]
[328938990,1718015440859,-500.0,0.00019178,2]
[328938991,1718015440875,-500.0,0.00019178,2]
[328938992,1718015440892,-500.0,0.00019178,2]
[328938993,1718015440905,-500.0,0.00019178,2]
[328938994,1718015440919,-500.0,0.00019178,2]
[328938995,1718015440937,-500.0,0.00019178,2]
[328938996,1718015440949,-500.0,0.00019178,2]
[328938997,1718015440962,-500.0,0.00019178,2]
[328938998,1718015440976,-500.0,0.00019178,2]
[328938999,1718015440992,-500.0,0.00019178,2]
[328939000,1718015441006,-500.0,0.00019178,2]
[328939001,1718015441022,-500.0,0.00019178,2]
[328939002,1718015441037,-551.33490613,0.00019178,2]
[328939003,1718015441051,-500.0,0.00019178,2]
[328939004,1718015441067,-500.0,0.00019178,2]
[328939005,1718015441080,-1090.19,0.00019178,2]
[328939006,1718015441094,-500.0,0.00019178,2]
[328939007,1718015441108,-500.0,0.00019178,2]
[328939008,1718015441124,-500.0,0.00019178,2]
[328939009,1718015441137,-500.0,0.00019178,2]
[328939010,1718015441152,-500.0,0.00019178,2]
[328939011,1718015441165,-500.0,0.00019178,2]
[328939012,1718015441179,-500.0,0.00019178,2]
[328939013,1718015441194,-500.0,0.00019178,2]
[328939014,1718015441207,-500.0,0.00019178,2]
[328939015,1718015441221,-500.0,0.00019178,2]
[328939016,1718015441234,-500.0,0.00019178,2]
[328939017,1718015441249,-506.48422182,0.00019178,2]
[328939018,1718015441263,-500.0,0.00019178,2]
[328939019,1718015441277,-500.0,0.00019178,2]
[328939020,1718015441291,-500.0,0.00019178,2]
[328939021,1718015441305,-500.0,0.00019178,2]
[328939022,1718015441320,-500.0,0.00019178,2]
[328939023,1718015441334,-500.0,0.00019178,2]
[328939024,1718015441348,-503.74802448,0.00019178,2]
[328939025,1718015441362,-1386.49,0.00019178,2]
[328939026,1718015441375,-500.0,0.00019178,2]
[328939027,1718015441389,-500.0,0.00019178,2]
[328939028,1718015441403,-500.0,0.00019178,2]
[328939029,1718015441417,-224.7868892,0.00019178,2]
[328939030,1718015441431,-500.0,0.00019178,2]
[328939031,1718015441445,-619.93,0.00019178,2]
[328939032,1718015441460,-1251.12,0.00019178,2]
[328939033,1718015441474,-500.0,0.00019178,2]
[328939034,1718015441487,-500.0,0.00019178,2]
[328939035,1718015441504,-500.0,0.00019178,2]
[328939036,1718015441634,-500.0,0.00019178,2]
[328939037,1718015441648,-500.0,0.00019178,2]
[328939038,1718015441659,-500.0,0.00019178,2]
[328939039,1718015441670,-500.0,0.00019178,2]
[328939040,1718015441683,-500.0,0.00019178,2]
[328939041,1718015441693,-500.0,0.00019178,2]
[328939042,1718015441704,-500.0,0.00019178,2]
[328939043,1718015441715,-500.0,0.00019178,2]
[328939044,1718015441727,-1553.33,0.00019178,2]
[328939045,1718015441738,-1235.95,0.00019178,2]
[328939046,1718015441748,-845.88,0.00019178,2]
[328939047,1718015441759,-500.0,0.00019178,2]
[328939048,1718015441770,-500.0,0.00019178,2]
[328939049,1718015441781,-500.0,0.00019178,2]
[328939050,1718015441792,-500.0,0.00019178,2]
[328939051,1718015441814,-500.0,0.00019178,2]
[328939052,1718015441825,-500.0,0.00019178,2]
[328939053,1718015441837,-767.47,0.00019178,2]
[328939054,1718015441848,-500.0,0.00019178,2]
[328939055,1718015441860,-500.0,0.00019178,2]
[328939056,1718015441874,-500.0,0.00019178,2]
[328939057,1718015441889,-500.0,0.00019178,2]
[328939058,1718015441901,-500.0,0.00019178,2]
[328939059,1718015441913,-500.0,0.00019178,2]
[328939060,1718015441926,-500.0,0.00019178,2]
[328939061,1718015441941,-500.0,0.00019178,2]
[328939062,1718015441955,-500.0,0.00019178,2]
[328939063,1718015441969,-443.00708835,0.00019178,2]
[328939064,1718015441988,-102.74291165,0.00019178,2]
[328939065,1718015442000,-500.0,0.00019178,2]
[328939066,1718015442012,-500.0,0.00019178,2]
[328939067,1718015442026,-500.0,0.00019178,2]
[328939068,1718015442037,-500.0,0.00019178,2]
[328939069,1718015442048,-1636.12,0.00019178,2]
[328939070,1718015442059,-342.96286839,0.00019178,2]
[328939071,1718015442073,-500.0,0.00019178,2]
[328939072,1718015442083,-516.56392276,0.00019178,2]
[328939073,1718015442095,-500.0,0.00019178,2]
[328939074,1718015442106,-500.0,0.00019178,2]
[328939075,1718015442118,-500.0,0.00019178,2]
[328939076,1718015442128,-500.0,0.00019178,2]
[328939077,1718015442140,-500.0,0.00019178,2]
[328939078,1718015442150,-500.0,0.00019178,2]
[328939079,1718015442161,-500.0,0.00019178,2]
[328939080,1718015442176,-729.42,0.00019178,2]
[328939081,1718015442187,-500.0,0.00019178,2]
[328939082,1718015442199,-500.0,0.00019178,2]
[328939083,1718015442210,-500.0,0.00019178,2]
[328939084,1718015442221,-216.59362082,0.00019178,2]
[328939085,1718015442232,-970.34,0.00019178,2]
[328939086,1718015442243,-652.83,0.00019178,2]
[328939087,1718015442254,-1677.66,0.00019178,2]
[328939088,1718015442265,-500.0,0.00019178,2]
[328939089,1718015442275,-500.0,0.00019178,2]
[328939090,1718015442287,-500.0,0.00019178,2]
[328939091,1718015442298,-500.0,0.00019178,2]
[328939092,1718015442309,-1380.71,0.00019178,2]
[328939093,1718015442321,-500.0,0.00019178,2]
[328939094,1718015442332,-500.0,0.00019178,2]
[328939095,1718015442343,-506.41049095,0.00019178,2]
[328939096,1718015442354,-505.43,0.00019178,2]
[328939097,1718015442365,-500.0,0.00019178,2]
[328939098,1718015442376,-577.35336352,0.00019178,2]
[328939099,1718015442388,-500.0,0.00019178,2]
[328939100,1718015442399,-500.0,0.00019178,2]
[328939101,1718015442410,-2109.93,0.00019178,2]
[328939102,1718015442421,-500.0,0.00019178,2]
[328939103,1718015442433,-510.33057948,0.00019178,2]
[328939104,1718015442445,-500.0,0.00019178,2]
[328939105,1718015442456,-500.0,0.00019178,2]
[328939106,1718015442467,-500.0,0.00019178,2]
[328939107,1718015442480,-500.0,0.00019178,2]
[328939108,1718015442493,-500.0,0.00019178,2]
[328939109,1718015442504,-1128.36,0.00019178,2]
[328939110,1718015442515,-500.0,0.00019178,2]
[328939111,1718015442525,-500.0,0.00019178,2]
[328939112,1718015442535,-933.08,0.00019178,2]
[328939113,1718015442546,-500.0,0.00019178,2]
[328939114,1718015442556,-151.0,0.00019178,2]
[328939115,1718015442568,-151.0,0.00019178,2]
[328939116,1718015442578,-151.0,0.00019178,2]
[328939117,1718015442589,-151.0,0.00019178,2]
[328939118,1718015442599,-279.02769804,0.00019178,2]
[328939119,1718015442610,-500.0,0.00019178,2]
[328939120,1718015442620,-660.73,0.00019178,2]
[328939121,1718015442631,-500.0,0.00019178,2]
[328939122,1718015442641,-500.0,0.00019178,2]
[328939123,1718015442651,-500.0,0.00019178,2]
[328939124,1718015442664,-500.0,0.00019178,2]
[328939125,1718015442675,-500.0,0.00019178,2]
[328939126,1718015442686,-500.0,0.00019178,2]
[328939127,1718015442698,-151.0,0.00019178,2]
[328939128,1718015442708,-223.84,0.00019178,2]
[328939129,1718015442720,-151.0,0.00019178,2]
[328939130,1718015442731,-151.0,0.00019178,2]
[328939131,1718015442743,-151.0,0.00019178,2]
[328939132,1718015442754,-151.0,0.00019178,2]
[328939133,1718015442764,-151.0,0.00019178,2]
[328939134,1718015442775,-151.0,0.00019178,2]
[328939135,1718015442787,-223.508462,0.00019178,2]
[328939136,1718015442798,-432.190909,0.00019178,2]
[328939137,1718015442809,-500.0,0.00019178,2]
[328939138,1718015442822,-583.08,0.00019178,2]
[328939139,1718015442833,-500.0,0.00019178,2]
[328939140,1718015442843,-1967.25,0.00019178,2]
[328939141,1718015442854,-500.0,0.00019178,2]
[328939142,1718015442865,-523.21,0.00019178,2]
[328939143,1718015442876,-500.0,0.00019178,2]
[328939144,1718015442887,-500.0,0.00019178,2]